bitfinex/quotes_BTCUSD_20220211
["timestamp","ask_amount","ask_price","bid_price","bid_amount"]
[1644592649357,0.2468975,43646.0,43639.0,0.08439999]
[1644592649557,0.30064592,43645.0,43639.0,0.08439999]
[1644592649801,0.05,43646.0,43639.0,0.08439999]
[1644592650301,0.206855,43647.0,43639.0,0.08439999]
[1644592650701,0.206855,43647.0,43639.0,0.13439999]
[1644592650900,0.114655,43644.0,43639.0,0.19172454]
[1644592651101,0.40280707,43644.0,43639.0,0.14172454]
[1644592651308,0.057328,43644.0,43639.0,0.14172454]
[1644592651504,0.057328,43644.0,43640.0,0.26343074]
[1644592651903,0.057328,43644.0,43639.0,0.14172454]
[1644592652300,0.057328,43644.0,43639.0,0.19172454]
[1644592652501,0.057328,43644.0,43643.0,0.27396335]
[1644592653303,0.05722244,43644.0,43643.0,0.55720111]
[1644592654556,0.114618,43645.0,43643.0,1.00665909]
[1644592654958,0.114618,43645.0,43644.0,0.26397058]
[1644592655156,0.114618,43645.0,43643.0,0.72342133]
[1644592655357,0.164618,43645.0,43643.0,0.72342133]
[1644592655566,0.25286535,43657.0,43644.0,0.26926229]
[1644592655567,0.057308,43646.0,43644.0,0.26926229]
[1644592655757,0.00069264,43658.0,43644.0,0.26926229]
[1644592655758,0.15009028,43658.0,43647.0,0.17189067]
[1644592655959,0.00069264,43658.0,43648.0,0.37218636]
[1644592656160,0.171894,43662.0,43648.0,0.42218636]
[1644592656358,0.057301,43661.0,43650.0,0.00069285]
[1644592656563,0.29302495,43656.0,43652.0,0.3102333]
[1644592656859,0.05,43655.0,43652.0,0.3602333]
[1644592657060,0.107301,43655.0,43652.0,0.3602333]
[1644592657500,0.107301,43655.0,43652.0,0.05]
[1644592660702,0.107301,43655.0,43652.0,0.04]
[1644592661551,0.057311,43654.0,43652.0,0.04]
[1644592661756,0.107301,43655.0,43652.0,0.04]
[1644592661955,0.107301,43655.0,43650.0,0.00069286]
[1644592662152,0.107301,43655.0,43648.0,0.05731695]
[1644592662352,0.107301,43655.0,43643.0,0.28226212]
[1644592662553,0.26905199,43650.0,43644.0,0.31136131]
[1644592662753,0.37636599,43650.0,43644.0,0.31136131]
[1644592662956,0.107314,43650.0,43644.0,0.31136131]
[1644592663853,0.107314,43650.0,43646.0,0.05731484]
[1644592664055,0.25008367,43648.0,43646.0,0.05731484]
[1644592664261,0.107314,43650.0,43646.0,0.05731484]
[1644592664907,0.107314,43650.0,43646.0,0.05800737]
[1644592665808,0.107314,43650.0,43647.0,0.057303]
[1644592666007,0.107314,43650.0,43647.0,0.107303]
[1644592666406,0.107314,43650.0,43647.0,0.05]
[1644592667908,0.107314,43650.0,43646.0,0.05731484]
[1644592668109,0.0422,43649.0,43646.0,0.05731484]
[1644592668309,0.0422,43649.0,43641.0,0.11463028]
[1644592668310,0.05732,43647.0,43641.0,0.11463028]
[1644592668951,0.05732,43647.0,43641.0,0.41739637]
[1644592669252,0.05732,43647.0,43642.0,0.10731508]
[1644592669653,0.11464,43649.0,43647.0,0.11464]
[1644592670054,0.11464,43649.0,43647.0,0.16464]
[1644592670252,0.11464,43649.0,43648.0,0.3371066]
[1644592670852,0.16464,43649.0,43648.0,0.3371066]
[1644592671451,0.43865479,43649.0,43648.0,0.3371066]
[1644592671654,0.16464,43649.0,43648.0,0.3371066]
[1644592672708,0.48482152,43649.0,43648.0,0.3371066]
[1644592673108,0.48482152,43649.0,43645.0,0.11460997]
[1644592673109,0.81485249,43649.0,43645.0,0.11460997]
[1644592673309,0.81485249,43649.0,43646.0,0.00064795]
[1644592673310,0.099516,43648.0,43646.0,0.00064795]
[1644592673507,0.099516,43648.0,43640.0,0.00259219]
[1644592673508,1.05,43647.0,43640.0,0.00259219]
[1644592673808,0.114666,43644.0,43640.0,0.00259219]
[1644592674010,0.0422,43643.0,43640.0,0.00259219]
[1644592674207,0.351436,43641.0,43640.0,0.00259219]
[1644592674410,0.14953,43641.0,43639.0,0.08439999]
[1644592675008,0.14953,43641.0,43640.0,0.29812314]
[1644592675208,0.14953,43641.0,43639.0,0.13439999]
[1644592675209,0.0922,43641.0,43639.0,0.13439999]
[1644592676254,0.38702571,43641.0,43639.0,0.13439999]
[1644592677560,0.38702571,43641.0,43639.0,0.08439999]
[1644592677756,0.48702571,43641.0,43639.0,0.08439999]
[1644592677956,0.38702571,43641.0,43639.0,0.08439999]
[1644592678157,0.48702571,43641.0,43639.0,0.08439999]
[1644592678359,0.54435491,43641.0,43639.0,0.08439999]
[1644592678958,0.50167871,43641.0,43639.0,0.08439999]
[1644592679160,0.057326,43640.0,43639.0,0.08439999]
[1644592681913,0.35967321,43640.0,43639.0,0.08439999]
[1644592682312,0.45967321,43640.0,43639.0,0.08439999]
[1644592682709,0.45967321,43640.0,43637.0,0.00240852]
[1644592682710,1.17244706,43639.0,43637.0,0.00240852]
[1644592682910,1.39035606,43639.0,43637.0,0.00284606]
[1644592683113,0.64035606,43639.0,43637.0,0.00284606]
[1644592683957,0.64035606,43639.0,43637.0,0.0022]
[1644592684561,0.057342,43637.0,43633.0,1.459e-05]
[1644592684758,0.0959,43636.0,43633.0,1.459e-05]
[1644592684962,0.210588,43636.0,43633.0,1.459e-05]
[1644592685159,0.37527516,43636.0,43633.0,1.459e-05]
[1644592685358,0.47527516,43636.0,43633.0,1.459e-05]
[1644592685570,0.114709,43630.0,43624.0,0.0033]
[1644592685763,0.40587836,43626.0,43624.0,0.0033]
[1644592685960,1.0959,43625.0,43622.0,0.0033]
[1644592686159,1.0959,43625.0,43621.0,0.0071125]
[1644592686359,1.1959,43625.0,43621.0,0.0071125]
[1644592686659,0.28621201,43624.0,43622.0,0.00064851]
[1644592686860,0.103259,43623.0,43622.0,0.00064851]
[1644592687516,0.103259,43623.0,43621.0,0.0071125]
[1644592687715,0.21797576,43623.0,43621.0,0.0071125]
[1644592688412,0.05,43622.0,43621.0,0.0071125]
[1644592688612,0.0459,43622.0,43621.0,0.0071125]
[1644592688812,0.0959,43622.0,43621.0,0.0071125]
[1644592689311,0.3259,43622.0,43621.0,0.0071125]
[1644592689711,0.4259,43622.0,43621.0,0.0071125]
[1644592691560,0.4259,43622.0,43619.0,0.00391342]
[1644592691561,1.0259,43622.0,43619.0,0.00391342]
[1644592691761,1.05,43621.0,43618.0,0.00111342]
[1644592691962,0.160627,43620.0,43618.0,0.00111342]
[1644592693361,0.210627,43620.0,43618.0,0.00111342]
[1644592694165,0.103264,43620.0,43618.0,0.00111342]
[1644592696147,0.153264,43620.0,43618.0,0.00111342]
[1644592696946,0.267995,43620.0,43617.0,0.00064891]
[1644592697152,0.057372,43616.0,43612.0,0.0011]
[1644592697348,0.46857206,43615.0,43612.0,0.0011]
[1644592697549,0.05,43614.0,43612.0,0.0011]
[1644592697747,0.0459,43613.0,43612.0,0.0011]
[1644592697950,0.60046054,43613.0,43612.0,0.0011]
[1644592698148,0.92735259,43613.0,43612.0,0.0011]
[1644592698348,0.52282896,43613.0,43612.0,0.0011]
[1644592699059,0.1459,43613.0,43612.0,0.0011]
[1644592699262,0.0459,43613.0,43612.0,0.0011]
[1644592699460,0.057367,43614.0,43612.0,0.0011]
[1644592699662,0.114733,43616.0,43615.0,0.229476]
[1644592700060,0.114733,43616.0,43613.0,0.00020752]
[1644592700061,0.35212623,43614.0,43613.0,0.00020752]
[1644592700260,0.35212623,43614.0,43607.0,0.0033]
[1644592700261,14.98759248,43611.0,43607.0,0.0033]
[1644592700662,14.98759248,43611.0,43609.0,0.00460753]
[1644592701262,15.08759248,43611.0,43609.0,0.00460753]
[1644592703116,15.08759248,43611.0,43610.0,0.00268757]
[1644592704016,14.964858,43604.0,43603.0,0.0052984]
[1644592704417,1.05,43603.0,43601.0,0.01112936]
[1644592704615,1.12294087,43603.0,43601.0,0.01112936]
[1644592704815,1.22294087,43603.0,43601.0,0.00612936]
[1644592705014,0.26421785,43602.0,43601.0,0.00612936]
[1644592705214,0.31011785,43602.0,43601.0,0.00612936]
[1644592705415,0.41011785,43602.0,43601.0,0.00612936]
[1644592706668,14.94704684,43597.0,43595.0,0.0011]
[1644592706870,0.0459,43596.0,43595.0,0.00235872]
[1644592707471,0.38945427,43596.0,43595.0,0.00235872]
[1644592707867,0.72774087,43596.0,43595.0,0.00235872]
[1644592708670,0.82774087,43596.0,43595.0,0.00235872]
[1644592710707,1.12905893,43596.0,43595.0,0.00235872]
[1644592711809,1.12905893,43596.0,43593.0,0.00064885]
[1644592711810,1.05,43594.0,43593.0,0.00064885]
[1644592712008,1.05,43593.0,43587.0,0.0011]
[1644592712210,0.05,43591.0,43587.0,0.0011]
[1644592712407,0.39880243,43590.0,43579.0,0.00081688]
[1644592712607,0.31404664,43583.0,43579.0,0.00081688]
[1644592712807,0.75516992,43583.0,43579.0,0.00081688]
[1644592713012,0.75516992,43583.0,43572.0,0.0011]
[1644592713013,1.11443447,43582.0,43572.0,0.0011]
[1644592713207,0.05741342,43580.0,43572.0,0.0011]
[1644592713476,0.33295283,43581.0,43572.0,0.0011]
[1644592713477,0.07925239,43575.0,43572.0,0.0011]
[1644592713674,0.0459,43575.0,43572.0,0.0011]
[1644592713871,0.0459,43575.0,43572.0,0.29746882]
[1644592715067,0.0459,43575.0,43572.0,0.0011]
[1644592716169,0.37833077,43575.0,43571.0,0.01]
[1644592716376,0.0459,43575.0,43571.0,0.01]
[1644592716771,0.0459,43575.0,43572.0,0.00068885]
[1644592716772,0.06407212,43574.0,43572.0,0.00068885]
[1644592716969,0.057414,43573.0,43572.0,0.00068885]
[1644592717237,0.057414,43573.0,43572.0,0.29651494]
[1644592717627,0.057414,43573.0,43572.0,0.29582609]
[1644592717827,0.057414,43573.0,43571.0,0.01]
[1644592718027,0.114825,43573.0,43571.0,0.01]
[1644592718230,0.057411,43573.0,43572.0,0.322424]
[1644592718430,0.057411,43573.0,43571.0,0.01]
[1644592718629,0.057411,43573.0,43571.0,0.01008658]
[1644592719131,0.14555106,43573.0,43571.0,0.2893701]
[1644592719330,0.14555106,43573.0,43571.0,0.01008658]
[1644592719529,0.19555106,43573.0,43571.0,0.01008658]
[1644592719731,0.107411,43573.0,43571.0,0.01008658]
[1644592720732,0.057411,43573.0,43572.0,0.05]
[1644592720969,0.23,43575.0,43574.0,0.17223299]
[1644592721167,0.23,43575.0,43574.0,1.05397035]
[1644592721367,0.23,43575.0,43574.0,1.19110383]
[1644592721766,0.23,43575.0,43574.0,0.90397035]
[1644592722367,0.23,43575.0,43574.0,1.10397035]
[1644592722768,0.1371,43575.0,43574.0,1.71399818]
[1644592722969,0.1371,43575.0,43574.0,1.41399818]
[1644592723672,0.0871,43575.0,43574.0,1.41399818]
[1644592723872,0.0871,43575.0,43574.0,1.47138218]
[1644592724077,0.0871,43575.0,43574.0,1.32138218]
[1644592724270,0.0871,43575.0,43574.0,1.36728218]
[1644592725111,0.0871,43575.0,43574.0,1.30989818]
[1644592725313,0.0871,43575.0,43574.0,1.36728218]
[1644592725512,0.22982727,43585.0,43583.0,0.207381]
[1644592725813,0.00065319,43588.0,43587.0,0.2]
[1644592726011,0.00065319,43588.0,43587.0,0.96841066]
[1644592726212,0.057369,43598.0,43588.0,0.322424]
[1644592726411,0.77308568,43599.0,43594.0,0.33339798]
[1644592726614,0.77308568,43599.0,43595.0,0.322424]
[1644592726811,0.42079625,43599.0,43595.0,0.37251066]
[1644592727010,0.42079625,43599.0,43595.0,0.05008666]
[1644592727209,0.42079625,43599.0,43595.0,8.666e-05]
[1644592727412,0.057368,43598.0,43595.0,8.666e-05]
[1644592727611,0.107368,43598.0,43595.0,8.666e-05]
[1644592730064,0.56382905,43599.0,43598.0,0.214736]
[1644592730259,0.56382905,43599.0,43598.0,0.26482266]
[1644592730260,0.23,43599.0,43598.0,0.26482266]
[1644592730759,0.23,43599.0,43598.0,0.53724666]
[1644592730962,0.23,43599.0,43598.0,0.21482266]
[1644592731162,0.42505019,43599.0,43598.0,0.53724666]
[1644592731360,0.23,43599.0,43598.0,0.21482266]
[1644592731560,0.23,43599.0,43598.0,0.53724666]
[1644592731561,0.287376,43599.0,43598.0,0.53724666]
[1644592731763,0.287376,43599.0,43598.0,0.21482266]
[1644592732808,0.23,43599.0,43598.0,0.53724666]
[1644592733213,0.23,43599.0,43598.0,0.9224176]
[1644592733412,0.42,43605.0,43598.0,0.63724666]
[1644592733614,0.0991,43606.0,43605.0,0.322424]
[1644592733813,0.05,43612.0,43605.0,0.51841066]
[1644592734013,0.057346,43610.0,43608.0,0.322424]
[1644592734211,0.057346,43610.0,43608.0,8.666e-05]
[1644592735211,0.114711,43610.0,43608.0,8.666e-05]
[1644592735416,0.17207819,43610.0,43608.0,8.666e-05]
[1644592735612,0.17207819,43610.0,43598.0,0.214736]
[1644592735613,0.13708006,43602.0,43599.0,0.30020727]
[1644592735984,0.07970506,43602.0,43601.0,8.666e-05]
[1644592736482,0.50609503,43602.0,43601.0,8.666e-05]
[1644592736985,0.60609503,43602.0,43601.0,8.666e-05]
[1644592739809,0.83609503,43602.0,43601.0,8.666e-05]
[1644592741109,0.88199503,43602.0,43601.0,8.666e-05]
[1644592741310,0.51297906,43602.0,43601.0,8.666e-05]
[1644592741513,0.23,43602.0,43601.0,8.666e-05]
[1644592741812,0.23,43602.0,43601.0,0.05008666]
[1644592742012,0.23,43602.0,43601.0,0.34148711]
[1644592742213,0.23,43602.0,43601.0,0.91307115]
[1644592742412,0.23,43602.0,43601.0,1.25955801]
[1644592742612,0.23,43602.0,43601.0,0.93713401]
[1644592742810,0.23,43602.0,43601.0,0.39148711]
[1644592743012,0.23,43602.0,43601.0,0.34148711]
[1644592743213,0.28,43602.0,43601.0,0.34148711]
[1644592743459,0.28,43602.0,43601.0,0.05008666]
[1644592743662,0.23,43602.0,43601.0,0.32758263]
[1644592743861,0.23,43602.0,43601.0,0.70000663]
[1644592744061,0.23,43602.0,43601.0,0.75000663]
[1644592744462,0.23,43602.0,43601.0,0.42758263]
[1644592745462,0.23,43602.0,43601.0,0.75000663]
[1644592745667,0.057365,43604.0,43603.0,0.472424]
[1644592745668,0.00046175,43604.0,43603.0,0.472424]
[1644592745865,0.00046175,43604.0,43603.0,0.92251066]
[1644592746065,1.75e-06,43604.0,43603.0,1.01841066]
[1644592746262,0.2296891,43625.0,43604.0,0.00138349]
[1644592746463,0.30740967,43623.0,43611.0,0.63126752]
[1644592746663,0.47734,43613.0,43612.0,0.322424]
[1644592746864,0.47734,43613.0,43612.0,0.32251066]
[1644592747065,0.05734,43613.0,43612.0,0.32251066]
[1644592748316,0.05734,43613.0,43612.0,8.666e-05]
[1644592748614,0.05734,43613.0,43612.0,0.32251066]
[1644592749015,0.05734,43613.0,43612.0,8.666e-05]
[1644592750022,0.05734,43613.0,43612.0,0.32251066]
[1644592750218,0.05734,43613.0,43612.0,0.37251066]
[1644592750517,0.534692,43614.0,43613.0,0.322424]
[1644592750717,0.534692,43614.0,43613.0,0.32251066]
[1644592751362,0.534692,43614.0,43613.0,8.666e-05]
[1644592751561,0.534692,43614.0,43613.0,0.32251066]
[1644592751562,0.65,43614.0,43613.0,0.32251066]
[1644592751764,0.65,43614.0,43613.0,8.666e-05]
[1644592751964,0.65,43614.0,43613.0,0.26630991]
[1644592752163,0.65,43614.0,43613.0,0.32251066]
[1644592752364,0.65,43614.0,43613.0,8.666e-05]
[1644592752567,0.65,43614.0,43613.0,0.32251066]
[1644592752763,0.65,43614.0,43613.0,8.666e-05]
[1644592752966,0.65,43614.0,43613.0,0.32251066]
[1644592753265,0.65,43614.0,43613.0,0.26620666]
[1644592753464,0.65,43614.0,43613.0,0.58863066]
[1644592753664,0.65,43614.0,43613.0,0.59068943]
[1644592754167,0.7,43614.0,43613.0,0.59068943]
[1644592755617,0.7,43614.0,43613.0,0.64068943]
[1644592755819,0.65,43614.0,43613.0,0.74068943]
[1644592756018,0.23,43614.0,43613.0,0.78658943]
[1644592756620,0.42,43616.0,43615.0,0.40732994]
[1644592756621,0.00046143,43616.0,43615.0,0.40732994]
[1644592756820,0.00046143,43616.0,43615.0,1.25799606]
[1644592757017,0.114652,43628.0,43615.0,1.42264906]
[1644592757218,0.114652,43628.0,43626.0,0.372424]
[1644592757219,0.05732,43628.0,43626.0,0.372424]
[1644592757520,0.05732,43628.0,43627.0,0.61405308]
[1644592757719,0.01,43639.0,43627.0,0.61413974]
[1644592757917,0.01,43639.0,43628.0,0.64306361]
[1644592758119,0.01,43639.0,43628.0,1.12626704]
[1644592758120,0.114632,43636.0,43628.0,1.12626704]
[1644592758318,0.114632,43636.0,43630.0,0.322424]
[1644592758570,0.01,43639.0,43633.0,0.372424]
[1644592758870,0.2682434,43639.0,43634.0,0.68165198]
[1644592759071,0.2682434,43639.0,43634.0,0.63165198]
[1644592759271,0.2682434,43639.0,43635.0,0.33209051]
[1644592759671,0.057308,43637.0,43636.0,0.322424]
[1644592759871,0.057308,43637.0,43632.0,0.322424]
[1644592760274,0.057308,43637.0,43632.0,0.372424]
[1644592760471,0.057308,43637.0,43633.0,0.322424]
[1644592760973,0.057308,43637.0,43634.0,0.322424]
[1644592761373,0.05799744,43637.0,43634.0,0.372424]
[1644592762227,0.28799744,43637.0,43634.0,0.372424]
[1644592762415,0.287308,43637.0,43634.0,0.372424]
[1644592762615,0.337308,43637.0,43634.0,0.372424]
[1644592764217,0.107308,43637.0,43634.0,0.372424]
[1644592764614,0.057308,43637.0,43634.0,0.372424]
[1644592767859,0.19245741,43636.0,43634.0,0.372424]
[1644592768062,0.49633426,43636.0,43635.0,0.322424]
[1644592768659,0.05,43636.0,43635.0,0.322424]
[1644592769257,0.05799778,43637.0,43636.0,0.422424]
[1644592769459,0.057308,43637.0,43636.0,0.69528842]
[1644592769730,0.00068978,43638.0,43637.0,0.322424]
[1644592769928,0.00068978,43638.0,43637.0,0.868324]
[1644592770122,0.00068978,43638.0,43637.0,0.668324]
[1644592770326,8.978e-05,43639.0,43638.0,0.322424]
[1644592770524,0.00275854,43647.0,43639.0,1.37757575]
[1644592770728,0.01,43649.0,43647.0,0.71645855]
[1644592770923,0.01,43649.0,43647.0,0.81645855]
[1644592771523,0.01,43649.0,43647.0,0.87375126]
[1644592772122,0.01,43649.0,43648.0,0.27088607]
[1644592772323,0.01,43649.0,43648.0,0.64331007]
[1644592772723,0.00431916,43649.0,43648.0,0.64331007]
[1644592772922,0.00431916,43649.0,43648.0,0.372424]
[1644592773566,0.00431916,43649.0,43648.0,0.63584645]
[1644592774370,0.4218434,43657.0,43648.0,0.63584645]
[1644592774371,0.08422608,43661.0,43652.0,0.2]
[1644592774570,0.0018434,43657.0,43656.0,0.372424]
[1644592774870,0.0018434,43657.0,43656.0,1.2047456]
[1644592775067,0.0018434,43657.0,43656.0,0.8047456]
[1644592775270,0.0018434,43657.0,43656.0,0.7047456]
[1644592775668,0.4582,43669.0,43658.0,0.057286]
[1644592775874,0.34085447,43691.0,43668.0,0.05]
[1644592776070,0.05,43696.0,43684.0,0.05]
[1644592776273,0.01,43699.0,43685.0,0.322424]
[1644592776669,0.0793578,43692.0,43688.0,0.05723871]
[1644592776872,0.0793578,43692.0,43691.0,0.322424]
[1644592777070,0.0793578,43692.0,43687.0,0.114469]
[1644592777071,0.15,43693.0,43689.0,0.322424]
[1644592777325,0.07981872,43694.0,43681.0,0.0959]
[1644592777326,0.0793578,43691.0,43681.0,0.0959]
[1644592777525,0.0793578,43691.0,43682.0,0.322424]
[1644592777526,0.057259,43688.0,43682.0,0.322424]
[1644592777829,0.057259,43688.0,43685.0,0.39028124]
[1644592778031,0.15,43679.0,43675.0,0.114508]
[1644592778230,0.15,43679.0,43661.0,0.3883]
[1644592778231,0.08471123,43671.0,43666.0,0.057276]
[1644592778432,0.08471123,43671.0,43662.0,0.3833]
[1644592778626,0.057287,43667.0,43662.0,0.3833]
[1644592778827,0.057287,43667.0,43659.0,0.18273914]
[1644592779028,0.05,43668.0,43666.0,0.322424]
[1644592779228,0.171846,43682.0,43667.0,0.057267]
[1644592779427,0.0018434,43673.0,43667.0,0.057267]
[1644592779927,0.2293578,43675.0,43666.0,0.26525122]
[1644592779928,0.20041522,43674.0,43666.0,0.26525122]
[1644592780127,0.0793578,43680.0,43667.0,0.322424]
[1644592780326,0.171846,43682.0,43668.0,0.379692]
[1644592780527,0.171846,43682.0,43670.0,0.322424]
[1644592780727,0.171846,43682.0,43673.0,0.30332279]
[1644592780968,0.057269,43678.0,43674.0,0.322424]
[1644592781365,0.171846,43682.0,43675.0,0.3]
[1644592781569,0.11454053,43696.0,43675.0,0.3]
[1644592781570,4.27722835,43699.0,43676.0,0.391224]
[1644592781765,0.43,43699.0,43676.0,0.541224]
[1644592781965,0.05,43696.0,43676.0,0.541224]
[1644592782165,0.05,43696.0,43679.0,0.05]
[1644592782367,0.2964423,43694.0,43685.0,0.322424]
[1644592782569,0.2964423,43694.0,43685.0,0.368324]
[1644592782765,0.00025916,43694.0,43685.0,0.468324]
[1644592782968,0.057251,43692.0,43685.0,0.1459]
[1644592783164,0.057251,43692.0,43686.0,0.322424]
[1644592783368,0.057251,43692.0,43684.0,0.05]
[1644592783573,0.1812012,43691.0,43683.0,0.05]
[1644592783768,0.00025916,43691.0,43686.0,0.322424]
[1644592783968,0.34931807,43691.0,43687.0,0.27135616]
[1644592784168,0.00025916,43698.0,43688.0,0.322424]
[1644592784468,0.00069093,43689.0,43688.0,0.76665278]
[1644592785214,0.00025916,43694.0,43687.0,0.05]
[1644592785215,0.31736598,43690.0,43687.0,0.05]
[1644592785416,0.00069092,43691.0,43688.0,0.322424]
[1644592785612,0.00095008,43691.0,43688.0,0.322424]
[1644592785811,0.00069092,43691.0,43688.0,0.322424]
[1644592786215,0.00069092,43691.0,43689.0,0.37001641]
[1644592786413,0.00025916,43692.0,43690.0,0.58619621]
[1644592786613,0.00069092,43692.0,43691.0,0.26532999]
[1644592786811,0.00069092,43692.0,43691.0,0.372424]
[1644592787615,0.00025916,43695.0,43691.0,0.372424]
[1644592787814,0.00069091,43694.0,43692.0,0.322424]
[1644592788115,0.35065479,43693.0,43692.0,0.322424]
[1644592788313,0.05,43693.0,43692.0,0.322424]
[1644592788769,0.05750616,43695.0,43693.0,0.322424]
[1644592788963,0.00025916,43694.0,43693.0,0.322424]
[1644592789163,0.05789915,43695.0,43693.0,0.322424]
[1644592789665,0.05789915,43695.0,43694.0,0.59233609]
[1644592789867,0.00091131,43695.0,43694.0,0.59233609]
[1644592790164,0.00025916,43697.0,43695.0,0.322424]
[1644592790366,0.01,43699.0,43695.0,0.322424]
[1644592790367,0.00045916,43696.0,43695.0,0.322424]
[1644592791163,0.00025916,43698.0,43695.0,0.322424]
[1644592791470,0.00045916,43698.0,43695.0,0.68478668]
[1644592791765,0.00045916,43698.0,43695.0,1.08478668]
[1644592791966,0.00045916,43698.0,43696.0,0.057225]
[1644592792220,0.00045916,43698.0,43697.0,0.368324]
[1644592792416,0.005,43699.0,43697.0,0.0459]
[1644592792614,0.00569133,43699.0,43698.0,0.322424]
[1644592792815,0.00569133,43699.0,43698.0,0.368324]
[1644592793515,0.005,43699.0,43698.0,0.368324]
[1644592794120,0.005,43699.0,43698.0,0.64098522]
[1644592794415,0.005,43699.0,43698.0,0.0459]
[1644592794618,0.2362012,43699.0,43687.0,0.057248]
[1644592794819,0.2362012,43699.0,43684.0,0.3]
[1644592794820,0.25137788,43688.0,43684.0,0.3]
[1644592795016,0.05,43688.0,43677.0,0.4937]
[1644592795217,0.05,43688.0,43678.0,0.05725503]
[1644592795417,0.057253,43690.0,43685.0,0.322424]
[1644592795616,0.05751216,43690.0,43685.0,0.322424]
[1644592795820,0.057253,43690.0,43685.0,0.322424]
[1644592796265,0.05794438,43690.0,43685.0,0.322424]
[1644592797266,0.05751216,43690.0,43685.0,0.379673]
[1644592797466,0.05820354,43690.0,43686.0,0.322424]
[1644592797666,0.1812012,43687.0,43686.0,0.322424]
[1644592797866,0.00025916,43689.0,43686.0,0.322424]
[1644592798066,0.2312012,43687.0,43686.0,0.322424]
[1644592798266,0.1812012,43687.0,43686.0,0.322424]
[1644592798467,0.2312012,43687.0,43686.0,0.322424]
[1644592798865,0.1518434,43687.0,43686.0,0.322424]
[1644592799066,0.2312012,43687.0,43686.0,0.322424]
[1644592799271,0.2312012,43687.0,43681.0,0.3981]
[1644592799272,0.057259,43686.0,43681.0,0.3981]
[1644592799468,0.057259,43686.0,43671.0,0.05795568]
[1644592799469,0.0793578,43676.0,43671.0,0.05795568]
[1644592799730,0.00025916,43685.0,43679.0,0.13623]
[1644592800023,0.30589181,43681.0,43680.0,0.322424]
[1644592800319,0.07554746,43683.0,43680.0,0.322424]
[1644592800520,0.13306862,43683.0,43680.0,0.322424]
[1644592800720,0.042262,43683.0,43680.0,0.622424]
[1644592800922,0.00025916,43685.0,43680.0,0.622424]
[1644592801119,0.0006909,43684.0,43680.0,0.622424]
[1644592801521,0.0579429,43684.0,43681.0,0.057253]
[1644592801721,0.0006909,43684.0,43682.0,0.322424]
[1644592801928,0.00025916,43689.0,43683.0,0.3]
[1644592802122,0.00025916,43692.0,43684.0,0.322424]
[1644592802322,0.00069089,43685.0,43684.0,0.422424]
[1644592802521,0.00069089,43685.0,43684.0,0.47966815]
[1644592802721,0.00069089,43685.0,43684.0,0.80935593]
[1644592802924,0.057239,43695.0,43686.0,1.05]
[1644592803127,0.01,43709.0,43686.0,1.05]
[1644592803128,0.01,43709.0,43692.0,0.05]
[1644592803327,0.01,43709.0,43695.0,1.05]
[1644592803597,0.07554746,43717.0,43701.0,1.05]
[1644592803598,0.05,43710.0,43701.0,1.05]
[1644592803794,0.07554746,43717.0,43705.0,0.69145281]
[1644592803993,0.07554746,43717.0,43712.0,0.34019508]
[1644592804194,0.07554746,43717.0,43713.0,0.322424]
[1644592805094,0.35022926,43714.0,43713.0,0.322424]
[1644592805294,0.42577672,43714.0,43713.0,0.322424]
[1644592805491,0.07554746,43714.0,43713.0,0.322424]
[1644592806093,0.36257659,43714.0,43713.0,0.322424]
[1644592806496,0.66476788,43714.0,43713.0,0.322424]
[1644592807099,0.71476788,43714.0,43713.0,0.322424]
[1644592807327,0.77200088,43714.0,43713.0,0.322424]
[1644592807723,0.71476788,43714.0,43713.0,0.322424]
[1644592808622,0.36257659,43714.0,43713.0,0.322424]
[1644592809826,0.36257659,43714.0,43713.0,0.372424]
[1644592809827,0.28702913,43714.0,43713.0,0.372424]
[1644592810023,0.05723,43715.0,43713.0,0.372424]
[1644592810427,0.057209,43717.0,43713.0,0.372424]
[1644592810624,0.43,43719.0,43715.0,0.322424]
[1644592810824,0.00045748,43716.0,43715.0,0.322424]
[1644592811471,0.00045748,43716.0,43715.0,0.58736452]
[1644592811670,0.067206,43719.0,43715.0,0.58736452]
[1644592811872,0.00045748,43718.0,43715.0,0.58736452]
[1644592812071,0.00045748,43718.0,43715.0,0.64457052]
[1644592812670,0.00045748,43718.0,43715.0,0.70177452]
[1644592812870,0.067206,43719.0,43715.0,0.64457052]
[1644592813172,0.01069505,43719.0,43715.0,0.64457152]
[1644592813372,0.01069505,43719.0,43715.0,0.74457152]
[1644592813573,0.01069505,43719.0,43715.0,0.68736452]
[1644592813971,0.01,43719.0,43715.0,0.74456852]
[1644592814172,0.01069504,43719.0,43715.0,0.80176652]
[1644592814571,0.01069504,43719.0,43715.0,0.74456852]
[1644592815221,0.067205,43719.0,43715.0,0.3202987]
[1644592815419,0.06790004,43719.0,43715.0,0.3202987]
[1644592816217,0.06790004,43719.0,43715.0,0.584125]
[1644592816419,0.067205,43719.0,43715.0,0.584125]
[1644592816619,0.06790004,43719.0,43715.0,0.584125]
[1644592817618,0.067205,43719.0,43715.0,0.584125]
[1644592817819,0.06790004,43719.0,43715.0,0.584125]
[1644592818018,0.06790004,43719.0,43715.0,0.64133071]
[1644592818219,0.06790004,43719.0,43716.0,0.322424]
[1644592818467,0.06790004,43719.0,43716.0,0.422424]
[1644592818668,0.06790004,43719.0,43716.0,0.72995964]
[1644592818867,0.067205,43719.0,43716.0,0.72995964]
[1644592819068,0.067205,43719.0,43716.0,0.422424]
[1644592819467,0.067205,43719.0,43716.0,0.322424]
[1644592819668,0.07554746,43718.0,43716.0,0.322424]
[1644592820368,0.06746502,43719.0,43716.0,0.322424]
[1644592820570,0.067205,43719.0,43716.0,0.322424]
[1644592822623,0.07554746,43717.0,43716.0,0.322424]
[1644592822820,0.07554746,43717.0,43706.0,0.28900446]
[1644592823020,0.07554746,43717.0,43707.0,0.322829]
[1644592823021,0.07554746,43713.0,43707.0,0.322829]
[1644592823218,0.057224,43715.0,43707.0,0.322829]
[1644592823418,0.00026002,43714.0,43707.0,0.322829]
[1644592823617,0.00026002,43715.0,43710.0,0.34450905]
[1644592823818,0.30045743,43717.0,43711.0,0.322829]